{"text_format":"1","workbook":"xlsx","n_sheets":1,"sheets":["Definição de Grupo"],"not_rendered":{"charts":0,"images":7,"macros":1,"external_links":0,"defined_names":1,"comments":0,"pivot_tables":0},"unopened":[],"bounds":{"document_bytes":16777216,"sheet_cells":100000,"rows_first":2000,"rows_last":500,"rows_between":2000,"halvings":0,"cell_chars":16384,"cell_head_chars":4096},"cells_cut":0,"cells_raw":0,"read":"whole","date_system":"1900"}

{"sheet":"Definição de Grupo","index":0,"n_rows":138,"n_cols":20,"rows_kept":138,"cut":false,"hidden":false,"merged":[[137,19,137,20],[68,19,68,20],[115,9,117,15],[96,6,96,7],[97,6,97,7],[101,6,101,7],[102,6,102,7],[103,6,103,7],[104,6,104,7],[98,6,98,7],[99,6,99,7],[100,6,100,7],[89,3,89,7],[69,0,72,5],[104,4,104,5],[98,4,98,5],[103,4,103,5],[100,4,100,5],[101,4,101,5],[97,4,97,5],[19,11,21,18],[77,13,77,19],[77,5,77,11],[73,0,74,20],[69,6,72,20],[76,13,76,19],[20,5,20,8],[56,9,57,18],[59,9,61,18],[91,4,91,5],[92,4,92,5],[99,4,99,5],[96,4,96,5],[102,4,102,5],[9,12,15,18],[0,6,3,20],[50,4,50,13],[51,4,51,13],[52,4,52,13],[27,5,27,6],[0,0,3,5],[4,0,5,20],[8,4,8,10],[9,4,9,10],[10,4,10,10],[14,4,14,10],[7,3,7,10],[8,1,18,2],[18,4,18,10],[11,4,11,10],[12,4,12,10],[93,4,93,5],[94,4,94,5],[95,6,95,7],[76,5,76,11],[13,4,13,10],[15,4,15,10],[16,4,16,10],[17,4,17,10],[95,4,95,5],[90,6,90,7],[91,6,91,7],[92,6,92,7],[93,6,93,7],[94,6,94,7],[90,4,90,5]]}
[null,null,null,null,null,null,"GRUPO DE TRABALHO E VIDA ÚTIL ESPECIFICADA\nPARA EQUIPAMENTOS DE ELEVAÇÃO CONF. ABNT NBR-8400"]
[]
[]
[]
["1 - Estruturas - Classe de Utilização da Estrutura do Equipamento"]
[]
[]
[null,null,null,"Entrada de Dados"]
[null,"Frequência média de utilização (informar)",null,10,"Ciclos por hora",null,null,null,null,null,null,{"$f":"IF(N87>24,\"ERRO: Horas acima de 24 hs trabalhadas\",\"\")","v":""}]
[null,null,null,10,"Curso médio do gancho (m)",null,null,null,null,null,null,null,"( ** ) Horas trabalhadas, com os motores efetivamente funcionando durante os movimentos de elevação e translação do equipamento (não confundir com as horas disponíveis por turno de trabalho)"]
[null,null,null,2,"Horas trabalhadas por turno (h **)"]
[null,null,null,2,"Número de turnos diários"]
[null,null,null,22,"Jornada de dias mensais"]
[null,null,null,5,"Velocidade de elevação (m/min)"]
[null,null,null,50,"Percurso médio no caminho de rolamento (m)"]
[null,null,null,15,"Percurso médio no vão da ponte rolante (m)"]
[null,null,null,30,"Velocidade translação da ponte rolante (m/min)"]
[null,null,null,15,"Velocidade direção da talha/carro (m/min)"]
[null,null,null,20,"Vida útl especifida para o equipamento (anos)",null,null,null,null,null,null,null,null,null,null,null,null,"     "]
[null,null,null,null,null,null,null,null,null,null,null,{"$f":"VLOOKUP(O53,C51:N53,3)","v":"Equipamentos que frequentemente levantam carga nominal e comumente cargas compreendidas entre 1/3 e 2/3 da carga nominal"}]
[null,null,null,null,null,"Estado de Carga - TABELA 2"]
[]
[]
[null,null,null,"Número total de ciclos","=","Ciclos por hora x Horas trabalhadas por turno x Número de turnos x Dias úteis por ano x Vida útil esperada"]
[]
[null,null,null,"Número total de ciclos","=",{"$f":"D9","v":10},"x",{"$f":"D11","v":2},"x",{"$f":"D12","v":2},"x",{"$f":"D13*12","v":264},"x",{"$f":"D19","v":20}]
[]
[null,null,null,"Número total de ciclos","=",{"$f":"(F26*H26*J26*L26*N26)","v":211200},null,"ciclos"]
[]
[]
[]
[null,null,1,{"$f":"6.3*(10^4)","v":63000},"A","6,3x10",4]
[null,null,2,{"$f":"2*(10^5)","v":200000},"B","2,0x10",5]
[null,null,3,{"$f":"6.3*(10^5)","v":630000},"C","6,3x10",5]
[null,null,4,{"$f":"2*(10^6)","v":2000000},"D","2,0x10",6,{"$f":"IF(F28<=D32,C32,IF(F28<=D33,C33,IF(F28<=D34,C34,IF(F28<=D35,C35,C35))))","v":3}]
[]
[null,null,null,null,0,1,2,3]
[null,null,1,"A",1,2,3,4,null,"Mx"]
[null,null,2,"B",2,3,4,5,null,{"$f":"IF(H45=1,1,IF(H45=2,1,IF(H45=3,1,IF(H45=4,1.06,IF(H45=5,1.12,IF(H45=6,1.2))))))","v":1.1200000000000001}]
[null,null,3,"C",3,4,5,6]
[null,null,4,"D",4,5,6,6,{"$f":"H35","v":3}]
[]
[]
[null,null,null,"Selecionado","Local",null,null,"resultado"]
[null,null,null,{"$f":"VLOOKUP(O53,C51:N53,2)","v":2},{"$f":"IF(D45=0,3,IF(D45=1,4,IF(D45=2,5,IF(D45=3,6))))","v":5},null,null,{"$f":"VLOOKUP(I41,C38:H41,E45)","v":5}]
[null,null,1,"A","Utilização ocasional não regular, seguida de longos períodos de repouso"]
[null,null,2,"B","Utilização regular em serviço intermitente"]
[null,null,3,"C","Utilização regular em serviço intensivo"]
[null,null,4,"D","Utilização em serviço intensivo severo, efetuado, por exemplo, em mais de um turno",null,null,null,null,null,null,null,{"$f":"I41","v":3}]
[]
[null,null,1,1,"Equipamentos que raramente levantam a carga nominal e comumente cargas da ordem de 1/3 da carga nominal"]
[null,null,2,2,"Equipamentos que frequentemente levantam carga nominal e comumente cargas compreendidas entre 1/3 e 2/3 da carga nominal"]
[null,null,3,3,"Equipamentos regularmente carregados com a carga nominal",null,null,null,null,null,null,null,null,null,2]
[]
[]
[]
[null,null,null,"Classe de Utilização ","=",{"$f":"VLOOKUP(H35,C32:F35,3)","v":"C"},null,{"$f":"VLOOKUP(H35,C32:G35,4)","v":"6,3x10"},{"$f":"VLOOKUP(H35,C32:G35,5)","v":5},{"$f":"VLOOKUP(M49,C46:L49,3)","v":"Utilização regular em serviço intensivo"}]
[null,null,null,"(TABELA 1)"]
[]
[null,null,null,"Estado da Carga","=",{"$f":"D45","v":2},null,null,null,{"$f":"L20","v":"Equipamentos que frequentemente levantam carga nominal e comumente cargas compreendidas entre 1/3 e 2/3 da carga nominal"}]
[null,null,null,"(TABELA 2)"]
[]
[null,null,null,"Número Convencional","=",{"$f":"H45","v":5}]
[null,null,null,"(TABELA 4)"]
[]
[null,null,null,"Coef. de Majoração Mx","=",{"$f":"J39","v":1.1200000000000001}]
[null,null,null,"(TABELA 10)"]
[]
[null,null,null,null,null,null,null,null,null,null,null,null,null,null,null,null,null,null,null,"Fl. 1/2"]
[null,null,null,null,null,null,"GRUPO DE TRABALHO E VIDA ÚTIL ESPECIFICADA\nPARA EQUIPAMENTOS DE ELEVAÇÃO CONF. ABNT NBR-8400"]
[]
[]
[]
["2 - Mecanismos - Grupo de Mecanismo do Equipamento"]
[]
[]
[null,null,null,"Tempo médio do ciclo","=","2 x Percurso médio no caminho de rolamento (m)",null,null,null,null,null,null,"+","2 x Percurso médio no vão da ponte (m)"]
[null,null,null,null,null,"Velocidade translação da ponte (m/min)",null,null,null,null,null,null,null,"Velocidade direção da talha/carro (m/min)"]
[]
[null,null,null,"Tempo médio do ciclo","=",2,"x",{"$f":"D15","v":50},"+",2,"x",{"$f":"D16","v":15}]
[null,null,null,null,null,null,null,{"$f":"D17","v":30},null,null,null,{"$f":"D18","v":15}]
[]
[null,null,null,"Tempo médio do ciclo","=",{"$f":"((H80/H81)*F80)+((L80/L81)*J80)","v":5.3333333333333339},"minutos"]
[]
[null,null,null,"Número de horas por dia","=","Ciclos por hora x Tempo médio por ciclo (h) x Horas trabalhadas por turno x Número de turnos"]
[]
[null,null,null,"Número de horas por dia","=",{"$f":"D9","v":10},"x",{"$f":"F83","v":5.3333333333333339},"x",{"$f":"H26","v":2},"x",{"$f":"J26","v":2},"=",{"$f":"F87*(H87/H88)*J87*L87","v":3.5555555555555558},"horas reais trabalhadas por dia"]
[null,null,null,null,null,null,null,60]
[]
[null,null,null,"Classe Func"]
[null,null,1,"V0,25","tm <= 0,5",null,800]
[null,null,2,"V0,5","0,5 < tm <= 1",null,1600]
[null,null,3,"V1","1 < tm <= 2",null,3200]
[null,null,4,"V2","2 < tm <= 4",null,6300]
[null,null,5,"V3","4 < tm <= 8",null,12500]
[null,null,6,"V4","8 < tm <= 16",null,25000]
[null,null,7,"V5","tm > 16",null,50000,null,{"$f":"IF(N87<=0.5,C91,IF(N87<=1,C92,IF(N87<=2,C93,IF(N87<=4,C94,IF(N87<=8,C95,IF(N87<=16,C96,IF(N87>16,C97)))))))","v":4}]
[null,null,null,"Classe Func.","Grupo",null,"Controle"]
[null,null,1,"V0,25",{"$f":"IF(F60=1,\"1Bm\",IF(F60=2,\"1Bm\",IF(F60=3,\"1Bm\")))","v":"1Bm"},null,{"$f":"IF(E99=\"1Bm\",1,IF(E99=\"1Am\",2,IF(E99=\"2m\",3,IF(E99=\"3m\",4,IF(E99=\"4m\",5,IF(E99=\"5m\",6))))))","v":1}]
[null,null,2,"V0,5",{"$f":"IF(F60=1,\"1Bm\",IF(F60=2,\"1Bm\",IF(F60=3,\"1Am\")))","v":"1Bm"},null,1]
[null,null,3,"V1",{"$f":"IF(F60=1,\"1Bm\",IF(F60=2,\"1Am\",IF(F60=3,\"2m\")))","v":"1Am"},null,2]
[null,null,4,"V2",{"$f":"IF(F60=1,\"1Am\",IF(F60=2,\"2m\",IF(F60=3,\"3m\")))","v":"2m"},null,3]
[null,null,5,"V3",{"$f":"IF(F60=1,\"2m\",IF(F60=2,\"3m\",IF(F60=3,\"4m\")))","v":"3m"},null,4]
[null,null,6,"V4",{"$f":"IF(F60=1,\"3m\",IF(F60=2,\"4m\",IF(F60=3,\"5m\")))","v":"4m"},null,5]
[null,null,7,"V5",{"$f":"IF(F60=1,\"4m\",IF(F60=2,\"5m\",IF(F60=3,\"5m\")))","v":"5m"},null,6,null,{"$f":"I97","v":4}]
[]
[]
[]
[]
[]
[]
[]
[]
[null,null,null,null,null,"Classe de Funcionam. dos Mecanismos","=",{"$f":"VLOOKUP(I97,C91:H97,2)","v":"V2"},null,{"$f":"VLOOKUP(I97,C91:H97,3)","v":"2 < tm <= 4"},null,"(TABELA 20)"]
[null,null,null,null,null,"(TABELA 20)"]
[null,null,null,null,null,null,null,null,null,{"$f":"J60","v":"Equipamentos que frequentemente levantam carga nominal e comumente cargas compreendidas entre 1/3 e 2/3 da carga nominal"}]
[null,null,null,null,null,"Estado de Solicitação dos Mecanismos","=",{"$f":"F60","v":2}]
[null,null,null,null,null,"(TABELA 21)"]
[]
[null,null,null,null,null,"Grupo dos Mecanismos","=",{"$f":"VLOOKUP(I105,C99:H105,3)","v":"2m"}]
[null,null,null,null,null,"(TABELA 23)"]
[]
[]
[]
[]
[]
[]
[]
[]
[]
[]
[]
[]
[]
[]
[]
[]
["Revisão 1",null,null,null,null,null,null,null,null,null,null,null,null,null,null,null,null,null,null,"Fl. 2/2"]